Cogmind - Beta 16 @@@ ROGUE MODE // 2026.01.23 @ 12:47:21 Player: Zedx Result: Destroyed by G-47 Trooper with Particle Gun Performance ------------- Evolutions (2) 1000 Regions Visited (3) 600 Robots Destroyed (12) 60 Value Destroyed (371) 371 Prototype IDs (2) 40 Alien Tech Used (0) 0 Bonus (0) 0 TOTAL SCORE: 2071 Bonus ------- None Cogmind --------- Core Integrity 0/550 Matter 120/300 Energy 100/100 System Corruption 0% Temperature Cool (9) Movement Core (50) Location -8/Materials Parts ------- > --- POWER (1) -------- (None) > --- PROPULSION (4) --- (None) > --- UTILITY (4) ------ Machine Analyzer Targeting Computer > --- WEAPON (2) ------- Backup Laser I > --- INVENTORY (5) ---- Improved Heat Sink Small Storage Unit ECM Suite Minigun High-powered Shotgun Peak State ------------ > --- POWER ------------ (None) > --- PROPULSION ------- Carbon-fiber Leg > --- UTILITY ---------- Machine Analyzer Targeting Computer > --- WEAPON ----------- Backup Laser I Gauss Rifle > --- INVENTORY -------- Improved Heat Sink Small Storage Unit ECM Suite Minigun High-powered Shotgun [Rating: 13] Favorites ----------- Power Ion Engine Engine Ion Engine Power Core Light Nuclear Core Propulsion Aluminum Leg Leg Aluminum Leg Hover Unit Backup Propulsion I Flight Unit Flight Unit Utility Light Armor Plating Device ECM Suite Storage Medium Storage Unit Processor Targeting Computer Protection Light Armor Plating Weapon Assault Rifle Energy Gun Backup Laser I Energy Cannon Beam Cannon Ballistic Gun Assault Rifle Special Weapon Welding Torch Build | -11 -10 -9 -8 ------- Run | Yrd Mat Mat Mat Slots Evolved 4 | . . 2 2 Power . | . . . . Propulsion 2 | . . 2 . Utility 2 | . . . 2 Weapon . | . . . . Parts Attached 29 | 7 14 3 5 Power 6 | 1 4 1 . Engine 5 | 1 3 1 . Core 1 | . 1 . . Reactor . | . . . . Propulsion 8 | 2 4 . 2 Treads . | . . . . Leg 6 | 2 2 . 2 Wheel . | . . . . Hover . | . . . . Flight 2 | . 2 . . Utility 9 | 3 3 1 2 Device 3 | 1 1 . 1 Storage 3 | 2 1 . . Processor 2 | . . 1 1 Hackware . | . . . . Protection 1 | . 1 . . Artifact . | . . . . Weapon 6 | 1 3 1 1 Energy Gun . | . . . . Energy Cannon 1 | . 1 . . Ballistic Gun 4 | 1 1 1 1 Ballistic Cannon . | . . . . Launcher . | . . . . Special Weapon 1 | . 1 . . Impact Weapon . | . . . . Slashing Weapon . | . . . . Piercing Weapon . | . . . . Special Melee Weapon . | . . . . Unidentified Prototypes 2 | . . 2 . Corrupted Parts 2 | . 2 . . System Corruption 20 | . 20 . . Parts Lost 14 | . 3 2 9 Power 3 | . 1 1 1 Propulsion 6 | . . 1 5 Utility 2 | . 1 . 1 Weapon 3 | . 1 . 2 Highest Loss Streak 8 | . 2 2 8 To Critical Strikes . | . . . . Average Backups 6 | . 7 4 4 Power . | . 1 . . Propulsion . | . 1 . . Utility 4 | . 4 3 3 Weapon . | . . . 1 Tool/Special . | . . . . Unused Backups 18 | . 12 2 4 Power 3 | . 3 . . Propulsion 3 | . 3 . . Utility 10 | . 6 2 2 Weapon 2 | . . . 2 Tool/Special . | . . . . Average Slot Usage (%) 75 | . 88 55 30 Engine 10 | . 12 7 . Leg 17 | . 24 . 2 Flight 5 | . 3 17 3 Device 5 | . 4 11 7 Storage 8 | . 12 . . Processor 2 | . . 9 10 Protection 6 | . 8 . . Energy Cannon 4 | . 5 . . Ballistic Gun 10 | . 12 11 1 Special Weapon 1 | . 2 . . Peak Build Rating 13 | 8 11 9 13 Average Rating 6 | 4 7 7 5 On Entrance 4 | . 8 5 6 Avg Prop Armor Cover (%) . | . . . . Naked Turns . | . . . . Heaviest Build 23 | 15 23 8 5 Greatest Support 20 | 20 20 10 18 Greatest Overweight (x) 5 | . 5 1 . Average Overweight (x) . | . . . . Largest Inventory Capacity 10 | 8 10 5 5 Average Capacity 7 | 7 8 5 5 Most Carried 10 | 2 10 5 5 Average Carried 6 | . 7 4 4 Final Capacity 8 | 8 5 5 5 Final Carried 5 | 2 4 5 5 Class Distribution -------------------- 92% | Mutant 7% | Scavenger-Mutant Dominant Class ---------------- Mutant | -10/Materials Mutant | -9/Materials Mutant | -8/Materials Resources | -11 -10 -9 -8 ----------- Run | Yrd Mat Mat Mat Matter Collected 641 | 308 215 . 118 Remotely . | . . . . Salvage Created 472 | 119 269 . 84 Parts 23 | 5 15 . 3 Haulers Intercepted . | . . . . Recyclers Shooed 1 | . . . 1 Parts Field Recycled . | . . . . Retrieved Matter . | . . . . Parts Self-Destructed . | . . . . Prevented . | . . . . Parts Restored . | . . . . Kills | -11 -10 -9 -8 ------- Run | Yrd Mat Mat Mat Combat Hostiles Destroyed 10 | . 8 . 2 Guns 6 | . 4 . 2 Cannons 3 | . 3 . . AOE 1 | . 1 . . Classes Destroyed 5 | 2 2 . 1 Tunneler 1 | 1 . . . Recycler 1 | 1 . . . Swarmer 3 | . 3 . . Grunt 6 | . 5 . 1 Hunter 1 | . . . 1 Best Kill Streak 3 | 1 3 . 1 Combat Bots Only 3 | . 3 . 1 Max Kills in Single Turn 1 | 1 1 . 1 Gunslinging . | . . . . Exploded 1 | . 1 . . Melee . | . . . . Uniques/NPCs Destroyed . | . . . . Combat | -11 -10 -9 -8 -------- Run | Yrd Mat Mat Mat Hostile Shots Fired 208 | . 75 37 96 Missed 69 | . 23 17 29 Hits 139 | . 52 20 67 Projectile 139 | . 52 20 67 Critical Strikes 3 | . 1 . 2 Damage Taken 1879 | . 612 247 1020 Core 775 | . 80 141 554 Absorbed by Shields . | . . . . Regen/Repaired (Parts) 55 | . 46 . 9 Core Remaining (%) 77 | 100 68 64 . Volleys Fired 111 | 13 85 . 13 Largest 2 | 1 2 . 2 Hottest 80 | 20 80 . 60 Shots Fired 119 | 13 86 . 20 Gun 84 | 13 51 . 20 Cannon 29 | . 29 . . Launcher . | . . . . Special 6 | . 6 . . Kinetic 64 | 13 51 . . Thermal 55 | . 35 . 20 Explosive . | . . . . Electromagnetic . | . . . . Robot Hit Streak 9 | 4 9 . 5 Robot Miss Streak 4 | 2 4 . 1 Penetration Max . | . . . . Secondary Targets 1 | . . . 1 Max Gunslinging Chain 1 | . . . 1 Shots Hit Robots 60 | 9 36 . 15 Core Hits 26 | 3 14 . 9 Critical Kills . | . . . . Critical Parts Destroyed . | . . . . Critical Strikes . | . . . . Melee Attacks . | . . . . Impact . | . . . . Slashing . | . . . . Piercing . | . . . . Sneak Attacks . | . . . . Combat Hostiles . | . . . . Follow-up Attacks . | . . . . Damage Inflicted 862 | 109 588 . 165 Guns 580 | 109 322 . 149 Cannons 159 | . 159 . . Explosions 105 | . 105 . . Melee . | . . . . Ramming 18 | . 2 . 16 Kinetic 431 | 109 322 . . Thermal 308 | . 159 . 149 Explosive . | . . . . Electromagnetic 105 | . 105 . . Impact . | . . . . Slashing . | . . . . Piercing . | . . . . Highest Corruption 26 | . 26 . . Average Corruption 21 | . 21 . . Corruption Purged . | . . . . Corruption Blocked . | . . . . Effects 53 | . 53 . . Message Errors 15 | . 15 . . Matter Fused 8 | . 8 . . Heat Flow Errors 7 | . 7 . . Energy Discharges 6 | . 6 . . Parts Fused 1 | . 1 . . Data Loss (minor) 5 | . 5 . . Data Loss (major) 4 | . 4 . . Misfires 2 | . 2 . . Alerts 1 | . 1 . . Misdirections 2 | . 2 . . Weapon Failures 2 | . 2 . . Overload Shots . | . . . . Overflow Damage . | . . . . Projectiles . | . . . . Explosions . | . . . . Melee . | . . . . Knockbacks . | . . . . Impact . | . . . . Kinetic . | . . . . Secondary . | . . . . Self-Inflicted Damage 40 | . 33 . 7 Shots 2 | . 2 . . Rammed 2 | . . . 2 Targets Rammed 3 | . 1 . 2 Kicked 1 | . 1 . . Crushed . | . . . . Highest Temperature 640 | . 640 . 2 Average Temperature 162 | . 163 . 2 Received Heat Transfer 609 | . 225 78 306 Effects 9 | . 9 . . Shutdowns 1 | . 1 . . Energy Bleed 2 | . 2 . . Interference 1 | . 1 . . Matter Decay 1 | . 1 . . Short Circuit 2 | . 2 . . Damage (minor) 2 | . 2 . . Siege Activations . | . . . . Martial Activations . | . . . . Shielding Activations . | . . . . Robots Disrupted . | . . . . Combat Hostiles . | . . . . Robots Corrupted . | . . . . Combat Hostiles . | . . . . Parts Fried . | . . . . Impact Corruptions . | . . . . Robots Melted . | . . . . Combat Hostiles . | . . . . Parts Melted 1 | . . . 1 Heat Transferred 925 | . 333 . 592 Parts Sabotaged . | . . . . Parts Stolen . | . . . . Parts Stripped . | . . . . Power Chain Reactions . | . . . . Alert | -11 -10 -9 -8 ------- Run | Yrd Mat Mat Mat Maximum Alert Level . | . . . . Low Security (%) 100 | 100 100 100 100 Level 1 . | . . . . Level 2 . | . . . . Level 3 . | . . . . Level 4 . | . . . . Level 5 . | . . . . High Security . | . . . . Max Security . | . . . . Peak Influence 115 | 5 81 80 115 Initial 25 | . . 4 25 Average 20 | 1 18 21 38 Influence Increases 568 | 10 242 109 207 Destroy 0b10 Robot/C 200 | . 160 . 40 Destroy 0b10 Robot/NC 10 | 10 . . . Destroy Leader 50 | . 30 . 20 Successful Hack 37 | . 6 4 27 Disable Machine 45 | . 45 . . Destroy Structure 1 | . 1 . . Partial Spotted 30 | . . 15 15 Lose Combat Pursuer 195 | . . 90 105 Influence Decreases 523 | 10 231 60 222 Entered New Map 42 | . . 7 35 Time Decay 366 | 10 211 48 97 Lost Part 115 | . 20 5 90 Squads Dispatched 5 | . 1 1 3 Investigation 4 | . 1 1 2 Extermination . | . . . . Reinforcement 1 | . . . 1 Assault . | . . . . Garrison . | . . . . Intercept . | . . . . Searches Triggered . | . . . . Construction Impeded . | . . . . Haulers Reinforced . | . . . . Active Scanning Responses . | . . . . Cargo Convoy Interrupts . | . . . . Stealth | -11 -10 -9 -8 --------- Run | Yrd Mat Mat Mat Distress Signals 5 | . 3 . 2 Communications Jammed . | . . . . Distress Signals . | . . . . Times Spotted 62 | . 22 21 19 Peak Tracking Total 11 | . 4 11 9 Tactical Retreats 10 | . . 6 4 ECM-based Alert Blocks 15 | . . 13 2 Traps | -11 -10 -9 -8 ------- Run | Yrd Mat Mat Mat Traps Triggered 4 | . 3 1 . Indirectly . | . . . . Trap Hack Attempts . | . . . . Triggered . | . . . . Disarmed 9 | . 5 . 4 Reprogrammed . | . . . . Reused . | . . . . Traps Extracted . | . . . . Installed . | . . . . Triggered . | . . . . Machines | -11 -10 -9 -8 ---------- Run | Yrd Mat Mat Mat Machines Disabled 4 | . 4 . . Max in Single Turn 2 | . 2 . . Machines Repaired . | . . . . Machines Dismantled . | . . . . Machines Sabotaged . | . . . . Overloaded Fab Kills . | . . . . Hacking | -11 -10 -9 -8 --------- Run | Yrd Mat Mat Mat Machines Accessed 18 | . 4 5 9 Terminals 11 | . 2 3 6 Fabricators . | . . . . Repair Stations 2 | . 1 . 1 Recycling Units 4 | . 1 1 2 Scanalyzers 1 | . . 1 . Garrison Access . | . . . . Total Hacks 50 | . 15 13 22 Successful 27 | . 11 6 10 Failed 22 | . 4 6 12 Catastrophic 4 | . . 2 2 Database Lockouts 1 | . . 1 . Manual 28 | . 9 7 12 Terminals 29 | . 7 7 15 Fabricators . | . . . . Repair Stations 8 | . 4 . 4 Recycling Units 11 | . 4 4 3 Scanalyzers 2 | . . 2 . Garrison Access . | . . . . Terminal Hacks 3 | . 2 . 1 Part Schematic 1 | . 1 . . Disarm Traps 2 | . 1 . 1 Fabricator Hacks . | . . . . Repair Station Hacks 7 | . 4 . 3 Scan Component 3 | . 2 . 1 Repair 3 | . 2 . 1 Refit 1 | . . . 1 Recycling Unit Hacks 6 | . 2 2 2 Report Inventory 2 | . 1 1 . Retrieve Matter 3 | . . 1 2 Retrieve Components 1 | . 1 . . Scanalyzer 1 | . . 1 . Retrieve Study 1 | . . 1 . Garrison Access Hacks . | . . . . Unauthorized Hacks 10 | . 3 3 4 Terminals 9 | . 2 3 4 Assimilate 1 | . 1 . . Botnet 8 | . 1 3 4 Fabricators . | . . . . Repair Stations . | . . . . Recycling Units 1 | . 1 . . Mask 1 | . 1 . . Scanalyzers . | . . . . Garrison Access . | . . . . Data Cores Recovered . | . . . . Used . | . . . . Hacking Detections 16 | . 4 4 8 Full Trace Events 4 | . 1 1 2 Feedback Events . | . . . . Feedback Blocked . | . . . . Robot Schematics Acquired . | . . . . Robots Built . | . . . . Authchips . | . . . . Time . | . . . . Total Robot Build Rating . | . . . . Part Schematics Acquired 1 | . 1 . . Parts Built . | . . . . Authchips . | . . . . Time . | . . . . Total Part Build Rating . | . . . . Part Studies Acquired 1 | . . 1 . Parts Repaired 3 | . 2 . 1 Time 78 | . 52 . 26 Parts Recycled . | . . . . Recycled Matter . | . . . . Retrieved Matter . | . . . . Retrieved Components 5 | . 5 . . Parts Scanalyzed . | . . . . Part Schematics Acquired . | . . . . Parts Damaged . | . . . . Bothacking | -11 -10 -9 -8 ------------ Run | Yrd Mat Mat Mat Used RIF Installer . | . . . . Robots Hacked . | . . . . Non-combat . | . . . . Combat . | . . . . Robot Hacks Applied . | . . . . Relay Couplers Released . | . . . . Fabnet Peak Effective % . | . . . . Robots Rewired . | . . . . Allies Hacked . | . . . . Hacks Repelled . | . . . . Allies | -11 -10 -9 -8 -------- Run | Yrd Mat Mat Mat Total Allies 1 | . 1 . . Largest Group 1 | . 1 . . Highest-Rated Group 10 | . 10 . . Highest-Rated Ally 10 | . 10 . . Total Orders . | . . . . Ally Attacks . | . . . . Total Damage . | . . . . Kills . | . . . . Allies Corrupted . | . . . . Allies Melted . | . . . . Intel | -11 -10 -9 -8 ------- Run | Yrd Mat Mat Mat Active Infowar (turns) 684 | 10 362 174 138 Terrain 227 | 10 217 . . Machine Analysis 33 | . . . 33 ECM 424 | . 145 174 105 Robot Analysis Total . | . . . . Derelict Logs Recovered . | . . . . Drone Launches . | . . . . Drone Recoveries . | . . . . Exploration | -11 -10 -9 -8 ------------- Run | Yrd Mat Mat Mat Turns Passed 1805 | 124 1220 222 239 Spaces Moved 1494 | 77 628 461 328 Core 81 | 9 . . 72 Treads . | . . . . Legs 580 | 68 488 . 24 Wheels . | . . . . Hover 9 | . . . 9 Flight 824 | . 140 461 223 Fastest Speed 37 | 50 37 37 40 Average Speed 85 | 111 134 39 49 Slowest Speed 440 | 120 440 120 120 Overloaded Moves . | . . . . Propulsion Burnouts . | . . . . Robots Hopped 18 | . 1 14 3 Potential Cave-ins . | . . . . Cave-ins Triggered . | . . . . Exploration Rate (%) 36 | 4 58 44 41 Regions Visited 3 Branch Regions . Pre-discovered Areas . | . . . . Known Exits Taken . | . . . . Unknown Exits Taken 3 | 1 1 1 . Scrap Searched . | . . . . Spaces Dug . | . . . . Terrain Destroyed . | . . . . Melee . | . . . . Projectile . | . . . . AOE . | . . . . Terrain Rammed . | . . . . Walls Destroyed . | . . . . Machines Disabled . | . . . . Actions | -11 -10 -9 -8 --------- Run | Yrd Mat Mat Mat Total 1888 | 98 921 486 383 Wait 214 | . 154 28 32 Move 1456 | 76 625 433 322 Hop 17 | . 1 13 3 Pick Up 26 | 2 18 3 3 Fast Attach 21 | 6 8 3 4 Attach 5 | . 3 1 1 Detach 3 | . 2 1 . Swap 7 | 1 5 1 . Drop 25 | . 19 3 3 Fire 111 | 13 85 . 13 Melee . | . . . . Ram 2 | . . . 2 Kick 1 | . 1 . . Crush . | . . . . Escape Stasis . | . . . . Rewire . | . . . . Trap . | . . . . Miscellaneous . | . . . . Route ------- -11/Scrapyard -10/Materials (discovered 3 exits: *Mat / [*Min] / [*Sub]) -9/Materials -8/Materials (discovered 1 exit: [*Fac]) History --------- Turn | Location | Event 4 | -11/Scrapyard | Discovered new exit (range 14) 125 | -11/Scrapyard | Entered Materials 283 | -10/Materials | System corruption reached 10% 303 | -10/Materials | Build established: Mutant 485 | -10/Materials | Discovered new exit (range 13) 671 | -10/Materials | Discovered new exit (range 12) 1262 | -10/Materials | Repaired Lgt. Armor Plating 1289 | -10/Materials | Repaired Flight Unit 1307 | -10/Materials | Discovered new exit (range 6) 1345 | -10/Materials | Entered another Materials area 1345 | -9/Materials | Evolved 2 slots: Propulsion x2 1431 | -9/Materials | Central database locked down 1559 | -9/Materials | Discovered new exit (range 13) 1567 | -9/Materials | Entered another Materials area 1567 | -8/Materials | Evolved 2 slots: Utility x2 1680 | -8/Materials | Discovered new exit (range 12) 1724 | -8/Materials | Repaired ECM Suite 1752 | -8/Materials | Core integrity fell below 50% 1768 | -8/Materials | Core integrity fell below 20% 1806 | -8/Materials | Destroyed by G-47 Trooper with Particle Gun Last Messages --------------- 01751_ Weight Redist. System destroyed. 01753_ Backup Laser I destroyed. 01757_ H-55 Commando heat short circuits Lgt. Nuclear Core. 01760_ Acquired 34 matter. 01762_ H-55 Commando heat damages Carbon-fiber Leg, Gauss Rifle, Targeting Computer, Assault Rifle. 01762_ Penetrated by Slug. 01765_ H-55 Commando heat short circuits Assault Rifle. 01765_ Aluminum Leg destroyed. 01765_ H-55 Commando destroyed. 01768_ Acquired Carbon-fiber Leg. 01771_ Acquired Gauss Rifle. 01773_ Acquired Machine Analyzer. 01795_ Gauss Rifle destroyed. 01799_ Acquired 43 matter. 01800_ Carbon-fiber Leg destroyed. 01800_ Critical hit (Burn: +37). Map ----- +----------------------------------------------------+ | | | | | | | | | | | | | | | | | | | ??################???????????????? | | ??# #???????????????? | | ??#""" "" """ ##???????????????? | | ??#"R "" """ #????????????????? | | ??#""" """ #########????????? | | ??# ## *#????????? | | ??# ## #????????? | | ??#######Y######## #????????? | | ???????# g + """ #????????? | | ######## # """ #????????? | | # ] + < # """ #????????? | | # # ################# | | #[ " # """ | | # "" # "T" | | # "" # | | # """ + h####?????? | | # "" # @ ^ #????????? | | # """ # #????????? | | # """ # ^ ^ #????????? | | # """ # """"" [#????????? | | ? " # """"""""" #????????? | | ? ## """ """ #????????? | | ?####### #????????? | | ???????# #????????? | | ???????########## #????????? | | ?????????# + #????????? | | ?????????# * # #######?######## | | ?????????# # #???????# | | ?????????# [[ ?# #???????# ! "" | | ?????????# [[ ?# #???????# "" | | ?????????# [ ??# #???????# "" | | ?????????#####??# #???????#"" | | ????????????????# #???????#"T | | ????????????????# #???????#"" | | ????????????????# #?####### | | ????????????????# #?# ##+####+ | | ????????????????# #?# | | ????????????????# #?# | | ????????????????# #?# ! | | ????????????????# #?# ######## | | ????????????????# #?### ###??##??? | +----------------------------------------------------+ Best States ------------- Heat Dissipation 31 Energy Generation 14 Energy Capacity 250 Matter Stores 300 Matter Capacity 300 Sight Range 16 Terrain Scan Range 16 Terrain Scan Density 10 ECM Strength 1 Additional Mass Support 6 Armor Coverage 150 Evasion (%) 62 Targeting Accuracy 5 Item Schematics ----------------- Aluminum Leg | -10/Materials | Hacked Robot Schematics ------------------ None Fabricated ------------ Nothing Repaired ---------- Lgt. Armor Plating | 54% | -10/Materials Flight Unit | 75% | -10/Materials ECM Suite | 55% | -8/Materials Studied --------- Flight Unit | -9/Materials | Hacked Alien Tech Used ----------------- None Achievements -------------- None Challenges ------------ None Game ------ Seed AerolevHackingReconfigurator Manual? 0 Play Time 00:25:02 Cumulative 53.7 hours Start 2026.01.23 @ 10:32:09 End 2026.01.23 @ 12:47:21 Sessions 1 Manual Loads 0 Difficulty Rogue Special Mode None Game No. 62 Rogue 62 Adventurer 0 Explorer 0 Win Type - Total 0 Types 0/0/0/0/0/0/0/0/0/0 Lore% 18 Gallery% 32 Achievement% 19 Wizard Run 0 Options --------- Layout 1 ASCII 0 Keyboard 1 Movement Numpad Keybinds 0 Fullscreen 2 Font 24/Smallcaps Map View 50x35 Zoom Use 0% Tactical HUD 1 Map Filters NONE Filters NONE Steam 1 RUN: bc07ddb6-b290-423c-8664-83b82488c623